bitfinex/quotes_SOLUSD_20230103
["timestamp","ask_amount","ask_price","bid_price","bid_amount"]
[1672765824603,30.0,13.261,13.244,50.0]
[1672765824916,30.0,13.261,13.23,8.11]
[1672765824917,30.0,13.248,13.23,8.11]
[1672765825117,56.67,13.247,13.231,20.0]
[1672765825330,30.0,13.246,13.231,20.0]
[1672765825544,30.0,13.246,13.231,31.08137784]
[1672765825873,56.68,13.245,13.23,20.0]
[1672765826062,30.0,13.246,13.229,11.08137784]
[1672765826279,30.0,13.246,13.23,20.0]
[1672765826694,30.0,13.244,13.23,20.0]
[1672765827228,56.67,13.246,13.228,20.0]
[1672765827632,119.1119,13.248,13.23,19.25137784]
[1672765827968,119.1119,13.248,13.23,51.81137784]
[1672765827969,56.67,13.247,13.23,51.81137784]
[1672765828171,175.7819,13.248,13.231,20.0]
[1672765828371,56.64,13.255,13.231,20.0]
[1672765828584,56.64,13.255,13.232,41.08137784]
[1672765828802,118.3646,13.254,13.233,20.0]
[1672765829006,56.64,13.253,13.234,30.0]
[1672765829213,56.64,13.253,13.235,20.0]
[1672765829417,56.64,13.253,13.235,31.08137784]
[1672765829733,118.3646,13.254,13.24,8.1]
[1672765829943,118.3646,13.254,13.241,20.0]
[1672765830355,118.3646,13.254,13.241,31.08137784]
[1672765830794,118.3646,13.254,13.242,57.60746334]
[1672765830994,118.3646,13.254,13.243,20.0]
[1672765831195,30.0,13.259,13.242,11.08137784]
[1672765831410,30.0,13.259,13.244,30.0]
[1672765831621,30.0,13.259,13.245,20.0]
[1672765832680,30.0,13.259,13.242,20.0]
[1672765833086,129.21288102,13.249,13.235,20.0]
[1672765833304,129.21288102,13.249,13.24,16.13]
[1672765833523,129.21288102,13.249,13.241,20.0]
[1672765834048,127.71288102,13.249,13.241,20.0]
[1672765835828,127.71288102,13.249,13.23,8.06]
[1672765836038,56.67,13.248,13.23,8.06]
[1672765836363,56.67,13.248,13.225,30.0]
[1672765836364,170.2294,13.248,13.225,30.0]
[1672765836683,30.0,13.247,13.225,30.0]
[1672765836893,56.67,13.246,13.225,30.0]
[1672765837103,56.67,13.247,13.23,8.09]
[1672765837312,56.67,13.247,13.231,30.0]
[1672765837524,127.71288102,13.249,13.231,30.0]
[1672765838051,56.67,13.248,13.232,20.0]
[1672765838241,127.71288102,13.249,13.24,40.51]
[1672765838575,127.71288102,13.249,13.241,20.0]
[1672765840142,127.71288102,13.249,13.235,20.0]
[1672765840466,127.71288102,13.249,13.236,42.89719935]
[1672765840672,127.71288102,13.249,13.237,50.0]
[1672765840988,127.71288102,13.249,13.24,8.06]
[1672765841199,127.71288102,13.249,13.241,20.0]
[1672765841394,73.38888102,13.249,13.241,20.0]
[1672765841607,56.6,13.263,13.25,122.39656081]
[1672765841937,173.6337,13.263,13.25,122.39656081]
[1672765842136,173.6337,13.263,13.252,30.0]
[1672765842348,173.6337,13.263,13.251,20.0]
[1672765842349,56.6,13.263,13.251,20.0]
[1672765842545,86.6,13.263,13.251,20.0]
[1672765843181,56.6,13.263,13.251,20.0]
[1672765843407,165.7137645,13.264,13.252,30.0]
[1672765843613,56.6,13.263,13.253,20.0]
[1672765844030,165.7137645,13.264,13.253,20.0]
[1672765844236,165.7137645,13.264,13.254,50.34827428]
[1672765844454,165.7137645,13.264,13.256,30.0]
[1672765844665,165.7137645,13.264,13.257,20.0]
[1672765845703,165.7137645,13.264,13.258,119.90315359]
[1672765845908,165.7137645,13.264,13.258,147.90235294]
[1672765846149,165.7137645,13.264,13.26,30.0]
[1672765846542,165.7137645,13.264,13.262,30.0]
[1672765846766,165.7137645,13.264,13.263,20.0]
[1672765846984,165.7137645,13.264,13.263,60.66760761]
[1672765847173,30.0,13.283,13.263,60.66760761]
[1672765847174,134.35556341,13.308,13.27,54.07940819]
[1672765847387,134.35556341,13.308,13.267,125.27850575]
[1672765847592,264.6,13.325,13.268,125.05240717]
[1672765847593,30.0,13.306,13.268,125.05240717]
[1672765847818,56.42,13.305,13.269,128.06162139]
[1672765848022,30.0,13.304,13.271,127.8537951]
[1672765848242,56.43,13.303,13.28,8.06]
[1672765848437,30.0,13.304,13.28,40.47]
[1672765848642,56.43,13.303,13.281,54.82074387]
[1672765848863,11.08137784,13.302,13.281,54.82074387]
[1672765849070,30.0,13.3,13.266,123.76536655]
[1672765849276,30.0,13.3,13.268,125.05240717]
[1672765849277,56.45,13.299,13.268,125.05240717]
[1672765849493,30.0,13.298,13.266,123.76536655]
[1672765849824,8.07,13.29,13.266,123.76536655]
[1672765850007,30.0,13.288,13.266,123.76536655]
[1672765850225,76.5,13.287,13.266,123.76536655]
[1672765850547,30.0,13.286,13.266,123.76536655]
[1672765850757,56.51,13.285,13.266,123.76536655]
[1672765850968,30.0,13.284,13.266,123.76536655]
[1672765851182,56.52,13.283,13.266,123.76536655]
[1672765851383,30.0,13.282,13.266,123.76536655]
[1672765851602,56.53,13.281,13.266,123.76536655]
[1672765851793,30.0,13.28,13.266,123.76536655]
[1672765852005,56.53,13.279,13.266,123.76536655]
[1672765852427,56.53,13.281,13.266,123.76536655]
[1672765853056,30.0,13.28,13.267,20.0]
[1672765853273,56.53,13.279,13.267,20.0]
[1672765853918,30.0,13.278,13.267,20.0]
[1672765854342,30.0,13.276,13.266,123.76536655]
[1672765854643,30.0,13.274,13.25,122.39656081]
[1672765854864,56.56,13.273,13.25,122.39656081]
[1672765855264,30.0,13.272,13.25,122.39656081]
[1672765855474,56.57,13.271,13.25,122.39656081]
[1672765855802,30.0,13.27,13.25,122.39656081]
[1672765856125,56.58,13.269,13.251,30.0]
[1672765858538,56.56,13.273,13.251,30.0]
[1672765858737,56.54,13.277,13.251,30.0]
[1672765859066,30.0,13.28,13.266,20.0]
[1672765859067,86.53,13.279,13.266,20.0]
[1672765859253,86.53,13.279,13.251,30.0]
[1672765859465,30.0,13.276,13.251,30.0]
[1672765859677,30.0,13.274,13.251,30.0]
[1672765859893,56.56,13.273,13.251,30.0]
[1672765861264,30.0,13.272,13.251,30.0]
[1672765861481,56.57,13.271,13.251,30.0]
[1672765861688,30.0,13.27,13.265,168.40261725]
[1672765862418,30.0,13.268,13.265,168.40261725]
[1672765862835,30.0,13.268,13.25,122.39656081]
[1672765863039,30.0,13.266,13.25,122.39656081]
[1672765863256,56.59,13.265,13.25,122.39656081]
[1672765863470,107.19029358,13.267,13.251,30.0]
[1672765863675,114.7102,13.268,13.251,29.0]
[1672765863887,114.7102,13.268,13.251,11.08137784]
[1672765864108,86.58,13.267,13.25,122.39656081]
[1672765864830,20.0,13.266,13.25,122.39656081]
[1672765865039,56.59,13.265,13.25,122.39656081]
[1672765865261,114.7102,13.268,13.25,122.39656081]
[1672765865457,114.7102,13.268,13.251,30.0]
[1672765866411,114.7102,13.268,13.252,20.0]
[1672765867581,114.7102,13.268,13.252,30.0]
[1672765867775,114.7102,13.268,13.253,20.0]
[1672765868313,30.0,13.266,13.25,122.39656081]
[1672765868509,56.59,13.265,13.25,122.39656081]
[1672765868935,30.0,13.264,13.25,122.39656081]
[1672765869256,114.7102,13.268,13.252,30.0]
[1672765869687,114.7102,13.268,13.253,31.08137784]
[1672765869987,114.7102,13.268,13.253,20.0]
[1672765871565,114.7102,13.268,13.25,122.39656081]
[1672765871566,114.7102,13.268,13.251,50.0]
[1672765871992,114.7102,13.268,13.251,20.0]
[1672765872180,114.7102,13.268,13.251,31.08137784]
[1672765872394,56.56,13.273,13.251,31.08137784]
[1672765872613,30.0,13.274,13.252,30.0]
[1672765872815,56.56,13.273,13.253,20.0]
[1672765874515,56.56,13.273,13.254,30.0]
[1672765874829,108.8494,13.275,13.256,30.0]
[1672765874830,56.55,13.274,13.256,30.0]
[1672765875024,56.55,13.274,13.257,20.0]
[1672765875231,56.55,13.274,13.258,30.0]
[1672765875440,108.8494,13.275,13.259,20.0]
[1672765875671,108.8494,13.275,13.259,78.97487847]
[1672765875875,108.8494,13.275,13.26,30.0]
[1672765876074,108.8494,13.275,13.262,30.0]
[1672765876500,108.8494,13.275,13.263,20.0]
[1672765876702,108.8494,13.275,13.263,31.08137784]
[1672765876911,108.8494,13.275,13.264,41.08137784]
[1672765877129,108.8494,13.275,13.265,20.0]
[1672765877441,8.1,13.28,13.251,30.0]
[1672765877660,76.53,13.279,13.252,10.0]
[1672765877871,56.53,13.279,13.257,11.08137784]
[1672765878382,56.53,13.281,13.257,11.08137784]
[1672765878717,30.0,13.281,13.258,20.0]
[1672765878910,56.53,13.28,13.258,20.0]
[1672765879122,30.0,13.281,13.259,11.08137784]
[1672765879331,56.53,13.28,13.259,11.08137784]
[1672765879547,56.53,13.28,13.261,30.0]
[1672765880083,56.53,13.28,13.262,20.0]
[1672765880610,56.52,13.282,13.263,11.08137784]
[1672765880819,56.52,13.282,13.265,30.0]
[1672765881235,56.52,13.282,13.266,20.0]
[1672765881864,30.0,13.281,13.263,11.08137784]
[1672765882073,30.0,13.281,13.26,42.88505632]
[1672765882074,30.0,13.279,13.26,47.48812438]
[1672765882282,56.54,13.278,13.257,41.08137784]
[1672765882905,56.54,13.278,13.258,123.16217784]
[1672765883121,56.54,13.278,13.259,50.0]
[1672765883329,56.52,13.282,13.259,50.0]
[1672765883537,56.52,13.282,13.26,19.17137784]
[1672765883743,56.52,13.282,13.262,30.0]
[1672765883963,56.52,13.282,13.263,20.0]
[1672765884285,56.52,13.282,13.264,30.0]
[1672765884476,56.5,13.287,13.265,20.0]
[1672765884681,30.0,13.286,13.265,20.0]
[1672765884907,56.51,13.285,13.265,20.0]
[1672765885128,30.0,13.284,13.265,20.0]
[1672765885329,56.52,13.283,13.265,20.0]
[1672765885663,8.03,13.28,13.266,47.89350063]
[1672765885844,56.53,13.279,13.251,113.2424]
[1672765886056,50.0,13.278,13.252,30.0]
[1672765886263,56.54,13.277,13.253,11.08137784]
[1672765886477,30.0,13.275,13.253,11.08137784]
[1672765886684,30.0,13.273,13.253,11.08137784]
[1672765886925,30.0,13.271,13.253,11.08137784]
[1672765887100,56.57,13.27,13.253,11.08137784]
[1672765887335,56.57,13.271,13.253,11.08137784]
[1672765888068,56.57,13.271,13.255,30.0]
[1672765888609,56.57,13.271,13.254,30.0]
[1672765889657,56.57,13.271,13.255,20.0]
[1672765890069,56.55,13.274,13.255,20.0]
[1672765890279,30.0,13.282,13.255,20.0]
[1672765890280,169.5127,13.279,13.256,11.08137784]
[1672765890498,169.5127,13.279,13.257,20.0]
[1672765890912,30.0,13.278,13.257,20.0]
[1672765891115,56.54,13.277,13.255,31.08137784]
[1672765891326,56.54,13.277,13.255,20.0]
[1672765891771,30.0,13.276,13.256,11.08137784]
[1672765892080,56.55,13.275,13.257,20.0]
[1672765892478,56.54,13.277,13.259,30.0]
[1672765892713,56.54,13.278,13.26,20.0]
[1672765892917,56.54,13.278,13.26,31.08137784]
[1672765893124,56.54,13.278,13.261,11.08137784]
[1672765893662,56.54,13.278,13.262,20.0]
[1672765894072,30.0,13.277,13.262,20.0]
[1672765894281,56.55,13.276,13.262,20.0]
[1672765894489,30.0,13.275,13.262,20.0]
[1672765894717,56.55,13.274,13.26,20.0]
[1672765895237,30.0,13.273,13.254,11.08137784]
[1672765895447,30.0,13.271,13.256,11.08137784]
[1672765895645,56.57,13.27,13.256,11.08137784]
[1672765896489,56.56,13.272,13.256,11.08137784]
[1672765896710,30.0,13.275,13.256,11.08137784]
[1672765896913,56.55,13.274,13.256,11.08137784]
[1672765897755,56.55,13.274,13.26,8.06]
[1672765897972,66.54,13.278,13.26,8.06]
[1672765898283,10.0,13.278,13.261,11.08137784]
[1672765898498,66.54,13.278,13.261,11.08137784]
[1672765898892,66.54,13.278,13.262,20.0]
[1672765899317,66.54,13.278,13.263,11.08137784]
[1672765899743,66.54,13.278,13.25,192.96656081]
[1672765899744,66.54,13.278,13.251,113.2424]
[1672765899965,30.0,13.277,13.257,11.08137784]
[1672765900278,56.55,13.276,13.258,33.49038966]
[1672765900591,56.55,13.276,13.259,11.08137784]
[1672765901117,66.54,13.278,13.261,30.0]
[1672765901534,10.0,13.278,13.263,30.0]
[1672765901852,30.0,13.277,13.264,20.0]
[1672765902055,30.0,13.277,13.262,69.4390273]
[1672765902056,56.55,13.276,13.262,69.4390273]
[1672765902283,30.0,13.275,13.262,20.0]
[1672765902486,56.55,13.274,13.254,20.0]
[1672765903867,56.55,13.274,13.254,50.0]
[1672765904574,56.55,13.274,13.254,20.0]
[1672765905226,30.0,13.273,13.254,20.0]
[1672765905444,56.56,13.272,13.251,113.2424]
[1672765905645,30.0,13.271,13.251,113.2424]
[1672765905856,30.0,13.269,13.251,113.2424]
[1672765906067,56.58,13.268,13.251,30.0]
[1672765906272,30.0,13.267,13.25,122.39656081]
[1672765906490,56.59,13.266,13.25,122.39656081]
[1672765906697,30.0,13.265,13.25,122.39656081]
[1672765907019,30.0,13.263,13.25,122.39656081]
[1672765907225,56.61,13.262,13.25,122.39656081]
[1672765907443,30.0,13.261,13.25,122.39656081]
[1672765907630,30.0,13.259,13.25,122.39656081]
[1672765907839,30.0,13.257,13.25,122.39656081]
[1672765908156,56.63,13.256,13.25,122.39656081]
[1672765908369,40.48,13.28,13.25,122.39656081]
[1672765908578,8.08,13.28,13.251,41.08137784]
[1672765908788,30.0,13.279,13.251,41.08137784]
[1672765909021,56.57,13.27,13.251,41.08137784]
[1672765909646,30.0,13.263,13.25,122.39656081]
[1672765909849,56.61,13.262,13.25,122.39656081]
[1672765910171,30.0,13.261,13.25,122.39656081]
[1672765910378,56.61,13.26,13.25,122.39656081]
[1672765910587,30.0,13.259,13.25,122.39656081]
[1672765910907,47.75292278,13.256,13.25,0.00656081]
[1672765911114,30.0,13.254,13.25,0.00656081]
[1672765911305,56.64,13.253,13.25,0.00656081]
[1672765911531,30.0,13.252,13.231,111.4677]
[1672765911835,30.0,13.252,13.23,11.08137784]
[1672765911836,30.0,13.25,13.23,11.08137784]
[1672765912042,30.0,13.25,13.222,910.25834429]
[1672765912043,30.0,13.248,13.222,871.76756501]
[1672765912265,30.0,13.246,13.232,11.08137784]
[1672765912477,56.68,13.245,13.223,141.4677]
[1672765912687,30.0,13.244,13.226,36.54064631]
[1672765913019,30.0,13.242,13.224,11.08137784]
[1672765913227,56.7,13.241,13.227,31.08137784]
[1672765913427,56.68,13.245,13.23,8.07]
[1672765913643,56.68,13.245,13.231,20.0]
[1672765913961,56.65,13.251,13.231,31.08137784]
[1672765914161,56.64,13.253,13.232,41.08137784]
[1672765914369,56.64,13.255,13.234,30.0]
[1672765914600,56.64,13.255,13.235,20.0]
[1672765914916,30.0,13.254,13.235,31.08137784]
[1672765915120,30.0,13.254,13.236,11.08137784]
[1672765915336,30.0,13.254,13.237,20.0]
[1672765917231,30.0,13.252,13.237,20.0]
[1672765917441,56.65,13.251,13.237,20.0]
[1672765917751,56.65,13.251,13.233,160.2563]
[1672765917752,30.0,13.25,13.234,20.0]
[1672765917941,30.0,13.248,13.233,160.2563]
[1672765918153,56.67,13.247,13.232,24.5261]
[1672765918362,30.0,13.246,13.23,8.15]
[1672765918779,30.0,13.246,13.231,11.08137784]
[1672765919002,157.5107,13.247,13.231,11.08137784]
[1672765919219,157.5107,13.247,13.232,20.0]
[1672765919638,157.5107,13.247,13.233,41.08137784]
[1672765919832,157.5107,13.247,13.234,20.0]
[1672765920048,157.5107,13.247,13.234,67.62202415]
[1672765920258,157.5107,13.247,13.235,11.08137784]
[1672765920498,214.1807,13.247,13.236,20.0]
[1672765920793,214.1807,13.247,13.234,20.0]
[1672765921022,157.5107,13.247,13.234,20.0]
[1672765921199,214.1807,13.247,13.234,20.0]
[1672765921738,214.1807,13.247,13.234,31.08137784]
[1672765922356,157.5107,13.247,13.234,31.08137784]
[1672765922579,56.65,13.251,13.234,31.08137784]
[1672765922795,30.0,13.253,13.234,31.08137784]
[1672765922796,56.65,13.252,13.234,31.08137784]
[1672765923198,56.65,13.252,13.234,20.0]
[1672765923407,30.0,13.251,13.232,20.0]
[1672765923622,30.0,13.249,13.232,20.0]
[1672765923852,56.67,13.248,13.232,31.08137784]
[1672765924051,56.67,13.248,13.233,30.0]
[1672765924264,56.66,13.249,13.233,30.0]
[1672765924581,116.9474,13.254,13.235,30.0]
[1672765924812,116.9474,13.254,13.236,20.0]
[1672765925007,116.9474,13.254,13.236,31.08137784]
[1672765925317,116.9474,13.254,13.247,11.061431]
[1672765925516,105.726,13.255,13.248,20.0]
[1672765925717,56.64,13.255,13.248,20.0]
[1672765925929,56.63,13.256,13.248,20.0]
[1672765926259,30.0,13.255,13.248,20.0]
[1672765926464,56.64,13.254,13.248,20.0]
[1672765926885,30.0,13.253,13.248,20.0]
[1672765927628,30.0,13.251,13.248,20.0]
[1672765929531,56.65,13.252,13.248,20.0]
[1672765929755,56.64,13.254,13.248,20.0]
[1672765930882,56.63,13.256,13.248,20.0]
[1672765931837,52.35,13.28,13.248,20.0]
[1672765931838,40.0,13.278,13.25,8.09]
[1672765932038,111.8674,13.264,13.251,20.0]
[1672765932472,30.0,13.263,13.251,20.0]
[1672765932789,30.0,13.263,13.247,11.061431]
[1672765933008,30.0,13.261,13.248,20.0]
[1672765933220,56.61,13.26,13.248,20.0]
[1672765933720,56.61,13.26,13.247,11.061431]
[1672765934573,56.61,13.261,13.247,11.061431]
[1672765934782,46.0441,13.262,13.248,73.50146028]
[1672765935101,46.0441,13.262,13.25,8.1]
[1672765935515,46.0441,13.262,13.252,30.0]
[1672765935735,46.0441,13.262,13.253,20.0]
[1672765935927,46.0441,13.262,13.253,131.77314673]
[1672765936141,56.55,13.276,13.262,46.0441]
[1672765936349,56.55,13.276,13.254,86.99217145]
[1672765936350,167.2747,13.277,13.263,20.0]
[1672765937315,167.2747,13.277,13.264,11.08137784]
[1672765937529,110.7347,13.277,13.265,20.0]
[1672765937716,167.2747,13.277,13.266,30.0]
[1672765937922,110.7347,13.277,13.266,75.91079361]
[1672765938132,110.7347,13.277,13.267,20.0]
[1672765938341,110.7347,13.277,13.267,65.91079361]
[1672765939203,110.7347,13.277,13.267,20.0]
[1672765939394,167.2747,13.277,13.267,20.0]
[1672765939607,30.0,13.276,13.263,20.0]
[1672765939837,167.2747,13.277,13.267,11.08137784]
[1672765939838,56.55,13.275,13.267,11.08137784]
[1672765940045,110.7347,13.277,13.268,20.0]
[1672765940046,56.55,13.276,13.268,20.0]
[1672765940580,56.54,13.277,13.265,20.0]
[1672765940777,56.54,13.277,13.264,20.0]
[1672765941202,30.0,13.276,13.264,20.0]
[1672765941412,30.0,13.276,13.263,45.9553]
[1672765941413,56.55,13.275,13.263,45.9553]
[1672765941630,56.55,13.275,13.248,151.04999876]
[1672765941837,104.2151,13.277,13.26,30.0]
[1672765942046,104.2151,13.277,13.261,20.0]
[1672765943109,30.0,13.276,13.26,20.0]
[1672765943316,30.0,13.274,13.26,20.0]
[1672765943529,30.0,13.274,13.259,48.4122]
[1672765943530,56.56,13.273,13.259,48.4122]
[1672765943847,56.56,13.273,13.253,126.94347784]
[1672765943848,30.0,13.272,13.253,115.8621]
[1672765944034,56.57,13.271,13.253,164.2743]
[1672765944246,30.0,13.27,13.253,48.4122]
[1672765944468,56.58,13.269,13.253,48.4122]
[1672765944671,56.58,13.269,13.253,59.49357784]
[1672765945094,56.58,13.269,13.253,48.4122]
[1672765945735,56.57,13.27,13.254,30.0]
[1672765945933,115.8194,13.272,13.254,79.33830861]
[1672765946262,115.8194,13.272,13.256,30.0]
[1672765946453,115.8194,13.272,13.258,30.0]
[1672765946659,115.8194,13.272,13.259,20.0]
[1672765947503,115.8194,13.272,13.258,20.0]
[1672765948339,115.8194,13.272,13.26,30.0]
[1672765948555,115.8194,13.272,13.261,20.0]
[1672765948776,115.8194,13.272,13.261,31.08137784]
[1672765948991,115.8194,13.272,13.262,11.08137784]
[1672765949198,115.8194,13.272,13.263,20.0]
[1672765950795,115.8194,13.272,13.263,31.08137784]
[1672765951195,10.0,13.278,13.264,30.0]
[1672765951408,10.0,13.278,13.265,20.0]
[1672765951617,10.0,13.278,13.265,31.08137784]
[1672765951833,10.0,13.278,13.265,72.80402675]
[1672765952042,10.0,13.278,13.265,20.0]
[1672765952477,10.0,13.278,13.266,11.08137784]
[1672765952682,10.0,13.278,13.267,20.0]
[1672765953096,10.0,13.278,13.267,31.08137784]
[1672765954477,10.0,13.278,13.268,30.0]
[1672765954677,10.0,13.278,13.269,20.0]
[1672765954998,10.0,13.278,13.269,31.08137784]
[1672765955206,10.0,13.278,13.269,20.0]
[1672765955610,10.0,13.278,13.269,31.08137784]
[1672765956347,10.0,13.278,13.269,20.0]
[1672765957080,10.0,13.278,13.265,41.08137784]
[1672765957081,10.0,13.278,13.266,20.0]
[1672765957517,10.0,13.278,13.268,30.0]
[1672765957721,10.0,13.278,13.269,20.0]
[1672765957939,10.0,13.278,13.27,30.0]
[1672765958151,10.0,13.278,13.271,20.0]
[1672765959308,10.0,13.278,13.271,31.08137784]
[1672765959833,10.0,13.278,13.271,20.0]
[1672765960661,10.0,13.278,13.272,63.88540459]
[1672765960871,10.0,13.278,13.273,50.0]
[1672765961082,10.0,13.278,13.273,87.71567384]
[1672765961632,10.0,13.278,13.273,50.0]
[1672765962238,10.0,13.278,13.273,61.08137784]
[1672765962655,23.115,13.283,13.274,37.71567384]
[1672765962866,102.2443,13.296,13.276,30.0]
[1672765963091,45.7843,13.295,13.277,20.0]
[1672765963402,45.7843,13.295,13.277,80.41968645]
[1672765963603,30.0,13.293,13.277,80.41968645]
[1672765963813,56.48,13.292,13.277,20.0]
[1672765964133,30.0,13.291,13.276,20.0]
[1672765964331,56.49,13.29,13.276,20.0]
[1672765964542,30.0,13.289,13.276,20.0]
[1672765964774,30.0,13.287,13.276,20.0]
[1672765964970,56.5,13.286,13.276,20.0]
[1672765965387,56.49,13.29,13.277,11.08137784]
[1672765965611,30.0,13.291,13.278,20.0]
[1672765965818,56.49,13.29,13.278,20.0]
[1672765966035,56.48,13.291,13.279,11.08137784]
[1672765966241,48.0291,13.292,13.279,60.41968645]
[1672765966455,48.0291,13.292,13.279,113.2237132]
[1672765966656,48.0291,13.292,13.281,30.0]
[1672765966856,48.0291,13.292,13.282,20.0]
[1672765967067,48.0291,13.292,13.282,49.33830861]
[1672765967291,48.0291,13.292,13.283,60.41968645]
[1672765967506,23.0256,13.293,13.284,20.0]
[1672765967711,86.45,13.298,13.284,83.88540459]
[1672765967920,86.45,13.298,13.285,52.80402675]
[1672765968141,86.45,13.298,13.286,20.0]
[1672765968448,56.45,13.298,13.286,69.33830861]
[1672765968662,56.45,13.298,13.287,102.14233536]
[1672765969075,30.0,13.297,13.288,122.14233536]
[1672765969288,56.46,13.296,13.288,102.14233536]
[1672765969494,30.0,13.295,13.286,20.0]
[1672765969909,56.47,13.294,13.286,20.0]
[1672765970118,30.0,13.293,13.283,20.0]
[1672765970869,30.0,13.293,13.282,47.7144]
[1672765971064,30.0,13.293,13.272,71.6733]
[1672765971065,30.0,13.291,13.272,71.6733]
[1672765971287,30.0,13.291,13.273,20.0]
[1672765971288,56.49,13.29,13.273,20.0]
[1672765971492,30.0,13.289,13.273,20.0]
[1672765971705,56.5,13.288,13.274,11.08137784]
[1672765971908,56.5,13.288,13.274,41.08137784]
[1672765972116,141.6364,13.292,13.275,30.0]
[1672765972324,141.6364,13.292,13.275,41.08137784]
[1672765972535,141.6364,13.292,13.276,11.08137784]
[1672765972750,141.6364,13.292,13.28,8.01]
[1672765973182,141.6364,13.292,13.281,31.08137784]
[1672765973375,141.6364,13.292,13.281,20.0]
[1672765974012,141.6364,13.292,13.28,11.08137784]
[1672765974230,141.6364,13.292,13.281,20.0]
[1672765976004,141.6364,13.292,13.281,31.08137784]
[1672765976213,141.6364,13.292,13.282,42.79376194]
[1672765976542,141.6364,13.292,13.282,53.87513978]
[1672765976748,119.0852,13.292,13.283,20.0]
[1672765976945,108.061218,13.292,13.283,20.0]
[1672765977167,108.061218,13.292,13.283,95.80101341]
[1672765977494,108.061218,13.292,13.284,47.66336501]
[1672765977805,108.061218,13.292,13.286,30.0]
[1672765978000,45.4767,13.295,13.285,20.0]
[1672765978207,79.7817,13.299,13.285,20.0]
[1672765978438,79.7817,13.299,13.285,31.08137784]
[1672765978755,78.7817,13.299,13.286,30.0]
[1672765978968,78.7817,13.299,13.286,45.80101341]
[1672765979160,30.0,13.298,13.287,20.0]
[1672765979490,30.0,13.296,13.287,20.0]
[1672765979685,30.0,13.296,13.282,47.6348]
[1672765979686,56.47,13.295,13.283,20.0]
[1672765979897,30.0,13.296,13.283,20.0]
[1672765980106,56.47,13.295,13.283,20.0]
[1672765981175,30.0,13.294,13.283,20.0]
[1672765981390,56.47,13.293,13.283,20.0]
[1672765982017,30.0,13.294,13.283,20.0]
[1672765982325,30.0,13.292,13.283,20.0]
[1672765982535,30.0,13.292,13.266,123.76536655]
[1672765982738,30.0,13.29,13.272,48.3393]
[1672765982944,30.0,13.288,13.273,20.0]
[1672765983148,56.5,13.287,13.273,20.0]
[1672765983355,112.8979,13.289,13.273,20.0]
[1672765983356,56.5,13.288,13.273,20.0]
[1672765983781,56.5,13.288,13.272,59.42067784]
[1672765984205,56.5,13.288,13.272,48.3393]